fUSD/lending_fUSD_20250413
["ID","MTS","AMOUNT","RATE_DAILY","PERIOD"]
[357886066,1744506638673,-1507.46768988,0.00019169,2]
[357886067,1744506638683,-500.0,0.00019173,2]
[357886068,1744506638692,-150.0,0.00019178,2]
[357886069,1744506638702,-500.0,0.00019178,2]
[357886070,1744506638711,-500.0,0.00019178,2]
[357886071,1744506638720,-500.0,0.00019178,2]
[357886072,1744506638729,-500.0,0.00019178,2]
[357886073,1744506638738,-500.0,0.00019178,2]
[357886074,1744506638747,-500.0,0.00019178,2]
[357886075,1744506638756,-500.0,0.00019178,2]
[357886076,1744506638766,-560.06,0.00019178,2]
[357886077,1744506638776,-500.0,0.00019178,2]
[357886078,1744506638785,-500.0,0.00019178,2]
[357886079,1744506638794,-282.70858316,0.00019178,2]
[357886080,1744506638804,-500.0,0.00019178,2]
[357886081,1744506638816,-500.0,0.00019178,2]
[357886082,1744506638825,-500.0,0.00019178,2]
[357886084,1744506638835,-500.0,0.00019178,2]
[357886086,1744506638844,-547.59,0.00019178,2]
[357886088,1744506638854,-386.2740139,0.00019178,2]
[357886090,1744506638863,-500.0,0.00019178,2]
[357886091,1744506638872,-500.0,0.00019178,2]
[357886093,1744506638884,-500.0,0.00019178,2]
[357886095,1744506638893,-500.0,0.00019178,2]
[357886097,1744506638903,-500.0,0.00019178,2]
[357886099,1744506638912,-612.27,0.00019178,2]
[357886101,1744506638922,-500.0,0.00019178,2]
[357886103,1744506638931,-500.0,0.00019178,2]
[357886105,1744506638940,-500.0,0.00019178,2]
[357886107,1744506638950,-544.03156115,0.00019178,2]
[357886109,1744506638959,-500.0,0.00019178,2]
[357886111,1744506638969,-500.0,0.00019178,2]
[357886113,1744506638978,-500.0,0.00019178,2]
[357886115,1744506638988,-1461.0,0.00019178,2]
[357886116,1744506638997,-500.0,0.00019178,2]
[357886118,1744506639007,-500.0,0.00019178,2]
[357886120,1744506639016,-500.0,0.00019178,2]
[357886121,1744506639026,-500.0,0.00019178,2]
[357886122,1744506639035,-500.0,0.00019178,2]
[357886123,1744506639045,-500.0,0.00019178,2]
[357886124,1744506639054,-530.82,0.00019178,2]
[357886125,1744506639064,-500.0,0.00019178,2]
[357886126,1744506639073,-500.0,0.00019178,2]
[357886127,1744506639082,-500.0,0.00019178,2]
[357886128,1744506639092,-159.00266846,0.00019178,2]
[357886129,1744506639101,-500.0,0.00019178,2]
[357886130,1744506639111,-500.0,0.00019178,2]
[357886131,1744506639120,-500.0,0.00019178,2]
[357886132,1744506639129,-500.0,0.00019178,2]
[357886133,1744506639138,-500.0,0.00019178,2]
[357886134,1744506639147,-625.48,0.00019178,2]
[357886135,1744506639156,-500.0,0.00019178,2]
[357886136,1744506639166,-500.0,0.00019178,2]
[357886137,1744506639175,-500.0,0.00019178,2]
[357886138,1744506639185,-528.04,0.00019178,2]
[357886139,1744506639194,-500.0,0.00019178,2]
[357886140,1744506639204,-500.0,0.00019178,2]
[357886141,1744506639214,-500.0,0.00019178,2]
[357886142,1744506639223,-500.0,0.00019178,2]
[357886143,1744506639233,-500.0,0.00019178,2]
[357886144,1744506639243,-500.0,0.00019178,2]
[357886145,1744506639252,-500.0,0.00019178,2]
[357886146,1744506639261,-500.0,0.00019178,2]
[357886147,1744506639270,-500.0,0.00019178,2]
[357886148,1744506639280,-500.0,0.00019178,2]
[357886149,1744506639289,-500.0,0.00019178,2]
[357886150,1744506639298,-500.0,0.00019178,2]
[357886151,1744506639308,-500.0,0.00019178,2]
[357886152,1744506639316,-500.0,0.00019178,2]
[357886153,1744506639325,-567.06,0.00019178,2]
[357886155,1744506639334,-558.8,0.00019178,2]
[357886157,1744506639343,-4334.1,0.00019178,2]
[357886158,1744506639352,-551.53,0.00019178,2]
[357886160,1744506639361,-500.0,0.00019178,2]
[357886162,1744506639370,-500.0,0.00019178,2]
[357886164,1744506639379,-500.0,0.00019178,2]
[357886166,1744506639389,-500.0,0.00019178,2]
[357886168,1744506639398,-6747.3,0.00019178,2]
[357886170,1744506639407,-500.0,0.00019178,2]
[357886172,1744506639416,-957.84,0.00019178,2]
[357886174,1744506639426,-256.74768203,0.00019178,2]
[357886177,1744506639443,-258.71231797,0.00019178,2]
[357886179,1744506639453,-500.0,0.00019178,2]
[357886180,1744506639462,-500.0,0.00019178,2]
[357886182,1744506639472,-500.0,0.00019178,2]
[357886183,1744506639481,-500.0,0.00019178,2]
[357886184,1744506639491,-500.0,0.00019178,2]
[357886185,1744506639501,-500.0,0.00019178,2]
[357886186,1744506639511,-564.99,0.00019178,2]
[357886187,1744506639520,-500.73,0.00019178,2]
[357886188,1744506639530,-500.0,0.00019178,2]
[357886189,1744506639539,-500.0,0.00019178,2]
[357886190,1744506639548,-500.0,0.00019178,2]
[357886191,1744506639558,-500.0,0.00019178,2]
[357886192,1744506639567,-500.0,0.00019178,2]
[357886193,1744506639577,-500.0,0.00019178,2]
[357886194,1744506639586,-500.0,0.00019178,2]
[357886195,1744506639598,-500.0,0.00019178,2]
[357886196,1744506639607,-500.0,0.00019178,2]
[357886197,1744506639617,-192.10253881,0.00019178,2]
[357886198,1744506639626,-500.0,0.00019178,2]
[357886199,1744506639635,-500.0,0.00019178,2]
[357886200,1744506639645,-500.0,0.00019178,2]
[357886201,1744506639654,-500.0,0.00019178,2]
[357886202,1744506639664,-969.38,0.00019178,2]
[357886203,1744506639674,-500.0,0.00019178,2]
[357886204,1744506639683,-500.0,0.00019178,2]
[357886205,1744506639693,-500.0,0.00019178,2]
[357886206,1744506639703,-500.0,0.00019178,2]
[357886207,1744506639713,-500.0,0.00019178,2]
[357886208,1744506639723,-500.0,0.00019178,2]
[357886209,1744506639733,-500.0,0.00019178,2]
[357886210,1744506639742,-500.0,0.00019178,2]
[357886211,1744506639752,-500.0,0.00019178,2]
[357886212,1744506639761,-7968.58650859,0.00019178,2]
[357886213,1744506639773,-434.40344235,0.00019178,2]
[357886214,1744506642433,-27046.76004906,0.00019178,2]
[357886215,1744506642443,-500.0,0.00019178,2]
[357886216,1744506642452,-202.87578954,0.00019178,2]
[357886217,1744506642462,-500.0,0.00019178,2]
[357886218,1744506642471,-500.0,0.00019178,2]
[357886219,1744506642480,-732.63,0.00019178,2]
[357886220,1744506642489,-500.0,0.00019178,2]
[357886221,1744506642499,-500.0,0.00019178,2]
[357886222,1744506642508,-500.0,0.00019178,2]
[357886223,1744506642518,-500.0,0.00019178,2]
[357886224,1744506642528,-500.0,0.00019178,2]
[357886225,1744506642538,-1772.74,0.00019178,2]
[357886226,1744506642547,-500.0,0.00019178,2]
[357886227,1744506642556,-500.0,0.00019178,2]
[357886228,1744506642566,-500.0,0.00019178,2]
[357886229,1744506642575,-500.0,0.00019178,2]
[357886230,1744506642584,-1278.5,0.00019178,2]
[357886231,1744506642594,-500.0,0.00019178,2]
[357886232,1744506642603,-500.0,0.00019178,2]
[357886233,1744506642613,-500.0,0.00019178,2]
[357886234,1744506642622,-500.0,0.00019178,2]
[357886235,1744506642631,-2031.64,0.00019178,2]
[357886236,1744506642640,-1955.21,0.00019178,2]
[357886237,1744506642649,-569.73,0.00019178,2]
[357886238,1744506642659,-1110.02,0.00019178,2]
[357886239,1744506642668,-500.0,0.00019178,2]
[357886240,1744506642677,-508.0,0.00019178,2]
[357886241,1744506642686,-500.0,0.00019178,2]
[357886242,1744506642695,-500.0,0.00019178,2]
[357886243,1744506642704,-500.0,0.00019178,2]
[357886244,1744506642714,-500.0,0.00019178,2]
[357886245,1744506642723,-500.0,0.00019178,2]
[357886246,1744506642732,-569.72,0.00019178,2]
[357886247,1744506642742,-734.38,0.00019178,2]
[357886248,1744506642751,-500.0,0.00019178,2]
[357886249,1744506642759,-500.0,0.00019178,2]
[357886250,1744506642768,-3825.26,0.00019178,2]
[357886251,1744506642778,-1767.81,0.00019178,2]
[357886252,1744506642787,-346.3788422,0.00019178,2]
[357886253,1744506642796,-279.72816625,0.00019178,2]
[357886254,1744506642807,-500.0,0.00019178,2]
[357886255,1744506642818,-575.35,0.00019178,2]
[357886256,1744506642827,-500.0,0.00019178,2]
[357886257,1744506642836,-500.0,0.00019178,2]
[357886258,1744506642847,-500.0,0.00019178,2]
[357886259,1744506642856,-500.0,0.00019178,2]
[357886260,1744506642865,-667.56,0.00019178,2]
[357886261,1744506642874,-500.0,0.00019178,2]
[357886262,1744506642885,-584.82,0.00019178,2]
[357886263,1744506642894,-500.0,0.00019178,2]
[357886264,1744506642903,-347.69,0.00019178,2]
[357886265,1744506642912,-348.89,0.000192,2]
[357886266,1744506642922,-169.54,0.00019202,2]
[357886267,1744506642931,-1507.46768988,0.00019261,2]
[357886268,1744506642940,-250.0,0.00019265,2]
[357886269,1744506642949,-696.98,0.000193,2]
[357886270,1744506642958,-348.89,0.000193,2]
[357886271,1744506642967,-623.12,0.00019342,2]
[357886272,1744506642976,-623.12,0.00019342,2]
[357886273,1744506642986,-1507.46768988,0.00019352,2]
[357886274,1744506642995,-3945.6751,0.00019352,2]
[357886275,1744506643004,-8363.19,0.00019352,2]
[357886276,1744506643014,-9710.48,0.00019352,2]
[357886277,1744506643023,-150.99,0.00019352,2]
[357886278,1744506643032,-646.16,0.00019352,2]
[357886279,1744506643041,-851.77,0.00019352,2]
[357886280,1744506643051,-9999.99,0.00019352,2]
[357886281,1744506643060,-150.99,0.00019352,2]
[357886282,1744506643069,-1124.49,0.00019352,2]
[357886283,1744506643078,-3033.72,0.00019352,2]
[357886284,1744506643088,-5424.6,0.00019352,2]
[357886285,1744506643097,-746.81,0.00019352,2]
[357886286,1744506643106,-1003.53,0.00019352,2]
[357886287,1744506643116,-500.0,0.00019397,2]
[357886288,1744506643125,-1257.8949713,0.00019399,2]
[357886289,1744506643134,-623.12,0.00019442,2]
[357886290,1744506643143,-623.12,0.00019442,2]
[357886291,1744506643153,-623.12,0.00019442,2]
[357886293,1744506643162,-623.12,0.00019442,2]
[357886294,1744506643171,-623.12,0.00019442,2]
[357886296,1744506643180,-623.12,0.00019442,2]
[357886298,1744506643191,-1507.46768988,0.00019443,2]
[357886300,1744506643200,-150.0,0.00019452,2]
[357886314,1744506643352,-1461.0,0.00019452,2]
[357886316,1744506643393,-500.0,0.00019452,2]
[357886318,1744506643403,-500.0,0.00019452,2]
[357886320,1744506643412,-500.0,0.00019452,2]
[357886322,1744506643422,-500.0,0.00019452,2]
[357886324,1744506643431,-500.0,0.00019452,2]
[357886325,1744506643441,-500.0,0.00019452,2]
[357886326,1744506643451,-560.06,0.00019452,2]
[357886327,1744506643460,-500.0,0.00019452,2]
[357886328,1744506643470,-500.0,0.00019452,2]
[357886329,1744506643479,-500.0,0.00019452,2]
[357886330,1744506643489,-500.0,0.00019452,2]
[357886331,1744506643498,-500.0,0.00019452,2]
[357886332,1744506643509,-500.0,0.00019452,2]
[357886333,1744506643518,-547.59,0.00019452,2]
[357886334,1744506643527,-500.0,0.00019452,2]
[357886335,1744506643536,-500.0,0.00019452,2]
[357886336,1744506643546,-500.0,0.00019452,2]
[357886337,1744506643555,-500.0,0.00019452,2]
[357886338,1744506643565,-500.0,0.00019452,2]
[357886339,1744506643575,-612.27,0.00019452,2]
[357886340,1744506643584,-500.0,0.00019452,2]
[357886341,1744506643593,-500.0,0.00019452,2]
[357886342,1744506643603,-500.0,0.00019452,2]
[357886343,1744506643612,-500.0,0.00019452,2]
[357886344,1744506643622,-500.0,0.00019452,2]
[357886345,1744506643631,-500.0,0.00019452,2]
[357886346,1744506643640,-500.0,0.00019452,2]
[357886347,1744506643650,-500.0,0.00019452,2]
[357886348,1744506643659,-592.71974815,0.00019452,2]
[357886349,1744506643669,-500.0,0.00019452,2]
[357886350,1744506643678,-500.0,0.00019452,2]
[357886351,1744506643687,-530.82,0.00019452,2]
[357886352,1744506643697,-500.0,0.00019452,2]
[357886353,1744506643706,-500.0,0.00019452,2]
[357886354,1744506643716,-500.0,0.00019452,2]
[357886355,1744506643724,-500.0,0.00019452,2]
[357886356,1744506643734,-500.0,0.00019452,2]
[357886357,1744506643743,-500.0,0.00019452,2]
[357886358,1744506643752,-500.0,0.00019452,2]
[357886359,1744506643761,-500.0,0.00019452,2]
[357886360,1744506643770,-625.48,0.00019452,2]
[357886361,1744506643779,-500.0,0.00019452,2]
[357886362,1744506643788,-500.0,0.00019452,2]
[357886363,1744506643797,-500.0,0.00019452,2]
[357886364,1744506643808,-528.04,0.00019452,2]
[357886365,1744506643818,-500.0,0.00019452,2]
[357886366,1744506643827,-500.0,0.00019452,2]
[357886367,1744506643836,-500.0,0.00019452,2]
[357886368,1744506643845,-500.0,0.00019452,2]
[357886369,1744506643856,-500.0,0.00019452,2]
[357886370,1744506643865,-500.0,0.00019452,2]
[357886371,1744506643874,-500.0,0.00019452,2]
[357886372,1744506643884,-500.0,0.00019452,2]
[357886373,1744506643895,-500.0,0.00019452,2]
[357886374,1744506643904,-500.0,0.00019452,2]
[357886375,1744506643914,-500.0,0.00019452,2]
[357886376,1744506643924,-500.0,0.00019452,2]
[357886377,1744506643933,-567.06,0.00019452,2]
[357886378,1744506643942,-558.8,0.00019452,2]
[357886379,1744506643952,-4334.1,0.00019452,2]
[357886380,1744506643961,-551.53,0.00019452,2]
[357886381,1744506643971,-500.0,0.00019452,2]
[357886382,1744506643981,-500.0,0.00019452,2]
[357886383,1744506643991,-500.0,0.00019452,2]
[357886384,1744506644000,-500.0,0.00019452,2]
[357886385,1744506644010,-6747.3,0.00019452,2]
[357886386,1744506644019,-500.0,0.00019452,2]
[357886387,1744506644029,-957.84,0.00019452,2]
[357886388,1744506644038,-515.46,0.00019452,2]
[357886389,1744506644047,-500.0,0.00019452,2]
[357886390,1744506644057,-500.0,0.00019452,2]
[357886391,1744506644067,-500.0,0.00019452,2]
[357886392,1744506644076,-500.0,0.00019452,2]
[357886393,1744506644086,-564.99,0.00019452,2]
[357886394,1744506644095,-500.0,0.00019452,2]
[357886395,1744506644104,-500.73,0.00019452,2]
[357886396,1744506644115,-500.0,0.00019452,2]
[357886397,1744506644124,-500.0,0.00019452,2]
[357886398,1744506644133,-500.0,0.00019452,2]
[357886399,1744506644143,-500.0,0.00019452,2]
[357886400,1744506644153,-500.0,0.00019452,2]
[357886401,1744506644162,-500.0,0.00019452,2]
[357886402,1744506644171,-500.0,0.00019452,2]
[357886403,1744506644181,-500.0,0.00019452,2]
[357886404,1744506644190,-500.0,0.00019452,2]
[357886405,1744506644199,-500.0,0.00019452,2]
[357886406,1744506644208,-500.0,0.00019452,2]
[357886407,1744506644217,-500.0,0.00019452,2]
[357886408,1744506644226,-969.38,0.00019452,2]
[357886409,1744506644235,-500.0,0.00019452,2]
[357886410,1744506644245,-500.0,0.00019452,2]
[357886411,1744506644254,-500.0,0.00019452,2]
[357886412,1744506644264,-500.0,0.00019452,2]
[357886413,1744506644273,-500.0,0.00019452,2]
[357886414,1744506644282,-500.0,0.00019452,2]
[357886415,1744506644292,-500.0,0.00019452,2]
[357886416,1744506644301,-500.0,0.00019452,2]
[357886417,1744506644311,-35449.75,0.00019452,2]
[357886418,1744506644319,-500.0,0.00019452,2]
[357886419,1744506644329,-500.0,0.00019452,2]
[357886420,1744506644339,-500.0,0.00019452,2]
[357886421,1744506644348,-732.63,0.00019452,2]
[357886422,1744506644357,-500.0,0.00019452,2]
[357886423,1744506644367,-500.0,0.00019452,2]
[357886424,1744506644375,-500.0,0.00019452,2]
[357886425,1744506644385,-500.0,0.00019452,2]
[357886426,1744506644394,-500.0,0.00019452,2]
[357886427,1744506644403,-500.0,0.00019452,2]
[357886428,1744506644412,-1772.74,0.00019452,2]
[357886429,1744506644422,-500.0,0.00019452,2]
[357886430,1744506644431,-500.0,0.00019452,2]
[357886431,1744506644440,-500.0,0.00019452,2]
[357886432,1744506644449,-1278.5,0.00019452,2]
[357886433,1744506644459,-500.0,0.00019452,2]
[357886434,1744506644468,-500.0,0.00019452,2]
[357886435,1744506644477,-500.0,0.00019452,2]
[357886436,1744506644486,-500.0,0.00019452,2]
[357886437,1744506644495,-2031.64,0.00019452,2]
[357886438,1744506644504,-1955.21,0.00019452,2]
[357886439,1744506644513,-569.73,0.00019452,2]
[357886440,1744506644523,-1110.02,0.00019452,2]
[357886441,1744506644532,-500.0,0.00019452,2]
[357886442,1744506644541,-508.0,0.00019452,2]
[357886443,1744506644551,-500.0,0.00019452,2]
[357886444,1744506644560,-500.0,0.00019452,2]
[357886445,1744506644569,-500.0,0.00019452,2]
[357886446,1744506644578,-500.0,0.00019452,2]
[357886447,1744506644588,-500.0,0.00019452,2]
[357886448,1744506644597,-569.72,0.00019452,2]
[357886449,1744506644606,-734.38,0.00019452,2]
[357886450,1744506644615,-500.0,0.00019452,2]
[357886451,1744506644624,-500.0,0.00019452,2]
[357886452,1744506644634,-3825.26,0.00019452,2]
[357886453,1744506644643,-1767.81,0.00019452,2]
[357886454,1744506644652,-500.0,0.00019452,2]
[357886455,1744506644662,-575.35,0.00019452,2]
[357886456,1744506644671,-500.0,0.00019452,2]
[357886457,1744506644680,-500.0,0.00019452,2]
[357886458,1744506644690,-500.0,0.00019452,2]
[357886459,1744506644699,-500.0,0.00019452,2]
[357886460,1744506644708,-667.56,0.00019452,2]
[357886461,1744506644717,-500.0,0.00019452,2]
[357886462,1744506644727,-584.82,0.00019452,2]
[357886463,1744506644736,-500.0,0.00019452,2]
[357886464,1744506644746,-151.05,0.00019452,2]
[357886465,1744506644755,-150.0,0.00019452,2]
[357886466,1744506644764,-150.0,0.00019452,2]
[357886467,1744506644773,-150.0,0.00019452,2]
[357886468,1744506644783,-500.0,0.00019473,2]
[357886469,1744506644792,-500.0,0.00019473,2]
[357886470,1744506644802,-500.0,0.00019473,2]
[357886471,1744506644816,-501.84387427,0.00019473,2]
[357886472,1744506644826,-500.0,0.00019473,2]
[357886473,1744506644835,-503.67864568,0.00019473,2]
[357886474,1744506644846,-1507.46768988,0.00019535,2]
[357886475,1744506644855,-623.12,0.00019593,2]
[357886476,1744506644864,-196.16,0.000196,2]
[357886477,1744506644874,-3962.0,0.00019603,2]
[357886478,1744506644883,-243.586,0.00019603,2]
[357886479,1744506644894,-770.0,0.00019603,2]
[357886480,1744506644904,-1122.0,0.00019603,2]
[357886481,1744506644913,-4264.19602566,0.00019614,2]
[357886482,1744506644922,-1507.46768988,0.00019626,2]
[357886483,1744506644931,-623.12,0.00019716,2]
[357886484,1744506644940,-1507.46768988,0.00019717,2]
[357886485,1744506644949,-252.0,0.00019726,2]
[357886486,1744506644958,-1461.0,0.00019726,2]
[357886487,1744506644968,-500.0,0.00019726,2]
[357886488,1744506644978,-151.0,0.00019726,2]
[357886489,1744506644988,-500.0,0.00019726,2]
[357886490,1744506644997,-152.9176324,0.00019726,2]
[357886491,1744506645006,-500.0,0.00019726,2]
[357886492,1744506645016,-500.0,0.00019726,2]
[357886493,1744506645025,-151.0,0.00019726,2]
[357886494,1744506645034,-500.0,0.00019726,2]
[357886495,1744506645043,-560.06,0.00019726,2]
[357886496,1744506645053,-500.0,0.00019726,2]
[357886497,1744506645062,-500.0,0.00019726,2]
[357886498,1744506645071,-500.0,0.00019726,2]
[357886499,1744506645081,-500.0,0.00019726,2]
[357886500,1744506645090,-500.0,0.00019726,2]
[357886501,1744506645099,-500.0,0.00019726,2]
[357886502,1744506645109,-547.59,0.00019726,2]
[357886503,1744506645118,-154.113989,0.00019726,2]
[357886504,1744506645128,-153.234122,0.00019726,2]
[357886505,1744506645137,-500.0,0.00019726,2]
[357886506,1744506645146,-500.0,0.00019726,2]
[357886507,1744506645156,-500.0,0.00019726,2]
[357886508,1744506645165,-579.53336308,0.00019726,2]
[357886509,1744506645175,-500.0,0.00019726,2]
[357886510,1744506645184,-612.27,0.00019726,2]
[357886511,1744506645193,-500.0,0.00019726,2]
[357886512,1744506645203,-500.0,0.00019726,2]
[357886513,1744506645212,-500.0,0.00019726,2]
[357886514,1744506645221,-151.0,0.00019726,2]
[357886515,1744506645230,-500.0,0.00019726,2]
[357886516,1744506645239,-500.0,0.00019726,2]
[357886517,1744506645249,-500.0,0.00019726,2]
[357886518,1744506645259,-500.0,0.00019726,2]
[357886519,1744506645268,-500.0,0.00019726,2]
[357886520,1744506645278,-500.0,0.00019726,2]
[357886521,1744506645287,-500.0,0.00019726,2]
[357886522,1744506645296,-530.82,0.00019726,2]
[357886523,1744506645305,-500.0,0.00019726,2]
[357886524,1744506645315,-500.0,0.00019726,2]
[357886525,1744506645323,-500.0,0.00019726,2]
[357886526,1744506645333,-500.0,0.00019726,2]
[357886527,1744506645342,-500.0,0.00019726,2]
[357886528,1744506645351,-500.0,0.00019726,2]
[357886529,1744506645360,-500.0,0.00019726,2]
[357886530,1744506645370,-500.0,0.00019726,2]
[357886531,1744506645379,-625.48,0.00019726,2]
[357886532,1744506645389,-500.0,0.00019726,2]
[357886533,1744506645398,-500.0,0.00019726,2]
[357886534,1744506645407,-500.0,0.00019726,2]
[357886535,1744506645416,-528.04,0.00019726,2]
[357886536,1744506645425,-500.0,0.00019726,2]
[357886537,1744506645434,-500.0,0.00019726,2]
[357886538,1744506645444,-500.0,0.00019726,2]
[357886539,1744506645453,-500.0,0.00019726,2]
[357886540,1744506645462,-500.0,0.00019726,2]
[357886541,1744506645472,-500.0,0.00019726,2]
[357886542,1744506645481,-500.0,0.00019726,2]
[357886543,1744506645491,-500.0,0.00019726,2]
[357886544,1744506645500,-500.0,0.00019726,2]
[357886545,1744506645509,-500.0,0.00019726,2]
[357886546,1744506645519,-500.0,0.00019726,2]
[357886547,1744506645528,-500.0,0.00019726,2]
[357886548,1744506645537,-567.06,0.00019726,2]
[357886549,1744506645546,-558.8,0.00019726,2]
[357886550,1744506645555,-4334.1,0.00019726,2]
[357886551,1744506645565,-551.53,0.00019726,2]
[357886552,1744506645574,-500.0,0.00019726,2]
[357886553,1744506645583,-409.40452894,0.00019726,2]
[357886554,1744506645592,-500.0,0.00019726,2]
[357886555,1744506645601,-500.0,0.00019726,2]
[357886556,1744506645610,-6747.3,0.00019726,2]
[357886557,1744506645620,-500.0,0.00019726,2]
[357886558,1744506645629,-957.84,0.00019726,2]
[357886559,1744506645638,-515.46,0.00019726,2]
[357886560,1744506645648,-500.0,0.00019726,2]
[357886561,1744506645657,-500.0,0.00019726,2]
[357886562,1744506645666,-500.0,0.00019726,2]
[357886563,1744506645676,-500.0,0.00019726,2]
[357886564,1744506645685,-500.0,0.00019726,2]
[357886565,1744506645695,-564.99,0.00019726,2]
[357886566,1744506645704,-500.73,0.00019726,2]
[357886567,1744506645713,-500.0,0.00019726,2]
[357886568,1744506645771,-500.0,0.00019726,2]
[357886569,1744506645780,-500.0,0.00019726,2]
[357886570,1744506645789,-500.0,0.00019726,2]
[357886571,1744506645798,-500.0,0.00019726,2]
[357886572,1744506645810,-500.0,0.00019726,2]
[357886573,1744506645819,-500.0,0.00019726,2]
[357886574,1744506645828,-500.0,0.00019726,2]
[357886575,1744506645837,-500.0,0.00019726,2]
[357886576,1744506645846,-500.0,0.00019726,2]
[357886577,1744506645855,-500.0,0.00019726,2]
[357886578,1744506645864,-500.0,0.00019726,2]
[357886579,1744506645873,-969.38,0.00019726,2]
[357886580,1744506645883,-500.0,0.00019726,2]
[357886581,1744506645892,-500.0,0.00019726,2]
[357886582,1744506645901,-500.0,0.00019726,2]
[357886583,1744506645910,-500.0,0.00019726,2]
[357886584,1744506645920,-500.0,0.00019726,2]
[357886585,1744506645929,-500.0,0.00019726,2]
[357886586,1744506645938,-500.0,0.00019726,2]
[357886587,1744506645947,-500.0,0.00019726,2]
[357886588,1744506645956,-35449.75,0.00019726,2]
[357886589,1744506645965,-500.0,0.00019726,2]
[357886590,1744506645975,-500.0,0.00019726,2]
[357886591,1744506645983,-451.7128089,0.00019726,2]
[357886592,1744506645992,-732.63,0.00019726,2]
[357886593,1744506646001,-500.0,0.00019726,2]
[357886594,1744506646010,-500.0,0.00019726,2]
[357886595,1744506646019,-500.0,0.00019726,2]
[357886596,1744506646028,-500.0,0.00019726,2]
[357886597,1744506646037,-500.0,0.00019726,2]
[357886598,1744506646045,-500.0,0.00019726,2]
[357886599,1744506646054,-1772.74,0.00019726,2]
[357886600,1744506646063,-500.0,0.00019726,2]
[357886602,1744506646072,-500.0,0.00019726,2]
[357886604,1744506646081,-500.0,0.00019726,2]
[357886605,1744506646090,-1278.5,0.00019726,2]
[357886606,1744506646099,-500.0,0.00019726,2]
[357886607,1744506646108,-500.0,0.00019726,2]
[357886608,1744506646117,-500.0,0.00019726,2]
[357886609,1744506646126,-500.0,0.00019726,2]
[357886611,1744506646136,-2031.64,0.00019726,2]
[357886612,1744506646145,-1955.21,0.00019726,2]
[357886613,1744506646154,-569.73,0.00019726,2]
[357886614,1744506646164,-1110.02,0.00019726,2]
[357886615,1744506646174,-500.0,0.00019726,2]
[357886616,1744506646183,-508.0,0.00019726,2]
[357886617,1744506646192,-500.0,0.00019726,2]
[357886618,1744506646201,-500.0,0.00019726,2]
[357886619,1744506646211,-500.0,0.00019726,2]
[357886620,1744506646220,-500.0,0.00019726,2]
[357886621,1744506646229,-500.0,0.00019726,2]
[357886622,1744506646239,-569.72,0.00019726,2]